bitfinex/quotes_SOLUSD_20241116
["timestamp","ask_amount","ask_price","bid_price","bid_amount"]
[1731777055214,28.53995862,214.16,214.08,11.6778]
[1731777055741,0.09367462,214.14,214.08,11.6778]
[1731777056047,23.776884,214.12,214.08,11.6778]
[1731777057134,23.776884,214.12,214.04,9.20700759]
[1731777057631,23.776884,214.12,214.05,9.20700759]
[1731777057814,23.776884,214.12,214.06,9.20700759]
[1731777058616,160.9,214.13,214.1,9.20700759]
[1731777058825,160.9,214.13,214.01,0.22549]
[1731777059117,0.09367462,214.12,214.08,9.20700759]
[1731777059317,0.09367462,214.12,214.09,16.3482]
[1731777059542,0.09367462,214.16,214.09,25.55520759]
[1731777060032,23.87055862,214.16,214.11,9.20700759]
[1731777061334,23.87055862,214.16,214.12,4.6702]
[1731777061521,11.6682,214.26,214.13,9.20700759]
[1731777061522,24.6681,214.22,214.13,9.20700759]
[1731777061723,20.0,214.2,214.13,9.20700759]
[1731777062112,0.09367462,214.19,214.13,9.20700759]
[1731777062744,23.87055862,214.22,214.13,9.20700759]
[1731777063343,23.87055862,214.22,214.14,16.3444]
[1731777063647,23.87055862,214.18,214.06,16.3504]
[1731777063878,23.87055862,214.16,214.06,25.55740759]
[1731777064341,4.6681,214.22,214.06,25.55740759]
[1731777064342,20.0,214.2,214.12,9.20700759]
[1731777064530,23.776884,214.19,214.12,9.20700759]
[1731777064839,0.09367462,214.18,214.11,9.20700759]
[1731777065238,0.09367462,214.19,214.11,9.20700759]
[1731777065741,0.09367462,214.19,214.12,16.3458]
[1731777068027,160.9,214.23,214.15,9.20700759]
[1731777068241,160.9,214.23,214.16,9.20700759]
[1731777068631,160.9,214.23,214.07,20.35098]
[1731777068632,0.09367462,214.22,214.07,20.35098]
[1731777068837,0.09367462,214.22,214.1,9.20700759]
[1731777069348,0.09367462,214.22,214.09,9.20700759]
[1731777069529,0.09367462,214.18,214.05,48.91730759]
[1731777069723,0.09367462,214.16,214.09,9.20700759]
[1731777070034,0.09367462,214.16,214.12,16.3458]
[1731777070440,0.09367462,214.17,214.12,16.3458]
[1731777071239,0.09367462,214.17,214.1,14.3885613]
[1731777072034,0.09367462,214.17,214.11,14.3885613]
[1731777072727,0.09367462,214.17,214.12,16.3458]
[1731777074556,0.09367462,214.17,214.11,14.3885613]
[1731777074557,0.09367462,214.17,214.1,14.3885613]
[1731777075039,23.87055862,214.19,214.1,14.3885613]
[1731777075849,28.53935862,214.19,214.07,39.7065]
[1731777076065,0.09367462,214.15,214.07,16.3497]
[1731777076371,23.87055862,214.15,214.07,16.3497]
[1731777076662,23.87055862,214.15,214.07,11.6784]
[1731777076850,23.87055862,214.13,214.07,11.6784]
[1731777077860,184.77055862,214.13,214.02,37.7505613]
[1731777078034,189.44075862,214.13,214.03,16.3528]
[1731777078240,184.77055862,214.13,214.04,14.3885613]
[1731777078742,184.77055862,214.13,214.05,14.3885613]
[1731777078945,184.77055862,214.13,214.07,14.3885613]
[1731777079253,0.09367462,214.13,214.08,14.3885613]
[1731777079433,23.87055862,214.15,214.08,14.3885613]
[1731777079636,23.87055862,214.15,214.06,14.3885613]
[1731777079855,28.54015862,214.15,214.04,14.3885613]
[1731777080043,23.87055862,214.13,214.05,11.6795]
[1731777081145,28.54055862,214.13,214.05,11.6795]
[1731777081764,23.87055862,214.13,214.06,14.3885613]
[1731777082669,23.87055862,214.15,214.06,14.3885613]
[1731777082867,28.54015862,214.15,214.05,14.3885613]
[1731777083054,28.54015862,214.15,214.04,14.3885613]
[1731777083247,28.54015862,214.15,214.02,23.362]
[1731777083248,0.09367462,214.13,214.02,37.7505613]
[1731777083452,184.77055862,214.13,214.02,23.362]
[1731777084368,184.77055862,214.13,214.02,39.7155]
[1731777084562,184.77055862,214.13,214.02,54.1040613]
[1731777084756,184.77055862,214.13,214.03,14.3885613]
[1731777085449,184.77055862,214.13,214.04,16.352]
[1731777085649,23.87055862,214.11,214.04,16.352]
[1731777085867,184.77055862,214.11,214.04,16.352]
[1731777086171,23.87055862,214.09,214.04,11.68]
[1731777086549,23.87055862,214.05,213.99,16.3553]
[1731777087668,23.87055862,214.05,213.99,11.6822]
[1731777088174,23.87055862,214.05,214.0,14.3885613]
[1731777089345,23.87055862,214.05,214.01,16.3542]
[1731777089550,0.09367462,214.05,214.02,14.3885613]
[1731777092470,0.09367462,214.07,214.01,30.7427613]
[1731777093169,23.87055862,214.09,214.01,30.7427613]
[1731777093367,23.87055862,214.09,214.01,16.3542]
[1731777093971,28.54145862,214.09,214.01,16.3542]
[1731777094353,23.87055862,214.09,214.01,30.7427613]
[1731777094556,20.0,214.11,214.04,14.3885613]
[1731777094757,23.776884,214.1,214.04,14.3885613]
[1731777095060,0.09367462,214.09,214.05,4.6718]
[1731777095874,0.09367462,214.09,214.03,4.672]
[1731777096175,0.09367462,214.09,214.03,16.3526]
[1731777096651,0.09367462,214.09,214.03,30.7411613]
[1731777099472,0.09367462,214.09,214.04,14.3885613]
[1731777099868,23.87055862,214.11,214.04,14.3885613]
[1731777100480,23.87055862,214.11,214.05,4.6718]
[1731777100866,23.87055862,214.11,214.05,16.3513]
[1731777102669,23.87055862,214.11,214.03,14.3885613]
[1731777104069,23.87055862,214.11,214.02,14.3885613]
[1731777104568,23.87055862,214.09,214.02,11.6811]
[1731777104776,0.09367462,214.07,214.02,11.6811]
[1731777104966,23.87055862,214.07,214.02,11.6811]
[1731777105683,23.87055862,214.07,213.99,14.3885613]
[1731777105867,23.776884,214.1,214.01,14.3885613]
[1731777106075,20.0,214.09,214.01,14.3885613]
[1731777106385,0.09367462,214.07,214.01,14.3885613]
[1731777106682,0.09367462,214.07,214.0,14.3885613]
[1731777106857,0.09367462,214.07,214.01,16.3542]
[1731777108681,0.09367462,214.05,214.01,11.6816]
[1731777110791,0.09367462,214.05,213.97,16.3569]
[1731777110990,23.87055862,214.05,213.97,16.3569]
[1731777111765,23.87055862,214.05,213.97,30.7454613]
[1731777111971,28.54235862,214.05,213.97,30.7454613]
[1731777112715,28.54235862,214.05,213.97,16.3569]
[1731777115263,189.44235862,214.05,213.97,16.3569]
[1731777118871,189.44235862,214.05,213.96,9.22183426]
[1731777119687,184.77055862,214.05,213.97,9.22183426]
[1731777119899,189.44235862,214.05,213.92,23.3732]
[1731777120076,189.44235862,214.05,213.95,9.22183426]
[1731777120471,189.44235862,214.05,213.96,9.22183426]
[1731777120683,189.44235862,214.05,213.97,9.22183426]
[1731777120996,189.44235862,214.05,213.98,16.3566]
[1731777121774,184.77055862,214.05,213.99,9.22183426]
[1731777122368,184.77055862,214.05,213.98,16.3566]
[1731777122565,184.77055862,214.05,214.01,9.22183426]
[1731777122992,184.77055862,214.05,214.02,16.3535]
[1731777122993,160.9,214.05,214.02,16.3535]
[1731777123190,11.6734,214.17,214.03,9.22183426]
[1731777123191,160.9,214.11,214.03,9.22183426]
[1731777123387,160.9,214.11,214.04,9.22183426]
[1731777123586,160.9,214.11,214.06,9.22183426]
[1731777123793,4.6696,214.15,214.07,9.22183426]
[1731777124791,4.6696,214.15,214.08,4.6711]
[1731777125009,160.9,214.14,214.08,4.6711]
[1731777125665,0.09367462,214.13,214.08,4.6711]
[1731777125871,23.87055862,214.13,214.07,11.6782]
[1731777128071,23.87055862,214.13,214.07,16.3495]
[1731777128478,23.87055862,214.13,214.07,25.57133426]
[1731777128879,23.87055862,214.13,214.08,9.22183426]
[1731777129182,23.87055862,214.13,214.07,25.57133426]
[1731777130091,23.87055862,214.14,214.07,16.3495]
[1731777131422,23.87055862,214.14,214.05,9.22183426]
[1731777132395,23.87055862,214.14,214.06,16.3504]
[1731777134910,23.87055862,214.14,214.05,9.22183426]
[1731777135505,23.87055862,214.14,214.06,9.22183426]
[1731777135800,23.87055862,214.14,214.07,16.3497]
[1731777137498,23.87055862,214.14,214.07,11.6784]
[1731777137801,160.9,214.19,214.11,9.22183426]
[1731777138103,160.9,214.19,214.1,9.22183426]
[1731777138404,0.09367462,214.18,214.1,9.22183426]
[1731777138605,160.9,214.19,214.11,9.22183426]
[1731777138810,18.46569768,214.2,214.13,9.22183426]
[1731777139111,18.46569768,214.2,214.07,11.6784]
[1731777139112,160.9,214.21,214.15,9.22183426]
[1731777139605,0.09367462,214.2,214.14,9.22183426]
[1731777139808,160.9,214.21,214.14,9.22183426]
[1731777140308,23.87055862,214.2,214.14,9.22183426]
[1731777140509,165.5669,214.28,214.16,9.22183426]
[1731777140691,160.9,214.27,214.17,9.22183426]
[1731777141097,0.09367462,214.26,214.17,9.22183426]
[1731777141501,0.09367462,214.26,214.18,16.3413]
[1731777141691,20.09367462,214.26,214.18,16.3413]
[1731777141887,0.09367462,214.25,214.18,25.56313426]
[1731777142094,0.09367462,214.25,214.18,16.3413]
[1731777142292,0.09367462,214.12,214.07,5.27463571]
[1731777142490,0.09367462,214.12,214.02,57.85899568]
[1731777142491,23.87055862,214.1,213.97,43.68643142]
[1731777142807,23.87055862,214.08,213.95,9.22183426]
[1731777143386,23.87055862,214.08,213.99,25.57693426]
[1731777143588,23.87055862,214.08,214.01,9.22183426]
[1731777144698,23.87055862,214.08,214.02,16.3535]
[1731777144902,0.09367462,214.08,214.02,16.3535]
[1731777146898,24.6695,214.16,214.05,14.40072368]
[1731777147098,24.6695,214.16,214.07,14.40072368]
[1731777147099,160.9,214.16,214.07,14.40072368]
[1731777148317,23.87055862,214.15,214.08,4.6711]
[1731777148504,23.776884,214.15,214.08,4.6711]
[1731777148709,0.09367462,214.14,214.08,4.6711]
[1731777149093,0.09367462,214.14,214.08,16.3489]
[1731777150809,43.87055862,214.16,214.08,16.3489]
[1731777154096,160.9,214.22,214.1,14.40072368]
[1731777154420,20.0,214.2,214.1,14.40072368]
[1731777155301,20.0,214.2,214.08,16.3489]
[1731777155302,160.9,214.21,214.12,14.40072368]
[1731777155813,0.09367462,214.2,214.12,14.40072368]
[1731777156221,0.09367462,214.2,214.13,16.3451]
[1731777156404,0.09367462,214.22,214.13,16.3451]
[1731777156607,23.87055862,214.22,214.13,30.74582368]
[1731777156803,0.09367462,214.22,214.14,14.40072368]
[1731777157114,4.6675,214.25,214.14,14.40072368]
[1731777157699,0.09367462,214.24,214.14,14.40072368]
[1731777157895,0.09367462,214.24,214.15,16.3436]
[1731777158117,0.09367462,214.22,214.15,16.3436]
[1731777159425,0.09367462,214.23,214.15,16.3436]
[1731777159596,23.87055862,214.23,214.15,16.3436]
[1731777161211,0.09367462,214.23,214.15,16.3436]
[1731777161611,4.6671,214.27,214.15,30.74432368]
[1731777162300,160.9,214.29,214.16,14.40072368]
[1731777162301,160.9,214.28,214.16,14.40072368]
[1731777162903,23.87055862,214.27,214.17,14.40072368]
[1731777163307,23.87055862,214.27,214.18,16.3413]
[1731777166923,23.87055862,214.27,214.14,23.3492]
[1731777167109,23.87055862,214.27,214.15,9.20353583]
[1731777167309,23.87055862,214.27,214.16,9.20353583]
[1731777167718,0.09367462,214.27,214.17,9.20353583]
[1731777168025,0.09367462,214.27,214.19,9.20353583]
[1731777168607,0.09367462,214.27,214.18,9.20353583]
[1731777169134,0.09367462,214.27,214.19,16.3405]
[1731777171615,43.87055862,214.29,214.19,16.3405]
[1731777175405,43.87055862,214.29,214.19,9.20353583]
[1731777175835,43.87055862,214.29,214.15,39.6917]
[1731777176028,43.87055862,214.29,214.19,9.20353583]
[1731777176230,43.87055862,214.29,214.2,9.20353583]
[1731777176424,23.87055862,214.29,214.2,9.20353583]
[1731777176632,23.87055862,214.29,214.2,16.3398]
[1731777178135,23.87055862,214.29,214.2,9.20353583]
[1731777178340,23.87055862,214.29,214.19,9.20353583]
[1731777178543,160.9,214.32,214.25,9.20353583]
[1731777178866,160.9,214.36,214.28,9.20353583]
[1731777179139,18.46059223,214.37,214.18,24.227864]
[1731777179140,18.46059223,214.37,214.29,9.20353583]
[1731777179331,184.02539223,214.37,214.2,0.1]
[1731777179511,23.12539223,214.37,214.28,9.20353583]
[1731777179713,0.09367462,214.36,214.28,9.20353583]
[1731777180533,23.87055862,214.36,214.29,16.3329]
[1731777183442,23.87055862,214.36,214.27,9.20353583]
[1731777183817,23.87055862,214.36,214.24,23.3376]
[1731777184140,23.87055862,214.34,214.24,23.3376]
[1731777184837,0.09367462,214.34,214.24,23.3376]
[1731777185041,23.87055862,214.35,214.24,32.54113583]
[1731777185223,23.87055862,214.35,214.25,9.20353583]
[1731777186517,23.87055862,214.35,214.26,16.3352]
[1731777187938,23.87055862,214.35,214.26,9.20353583]
[1731777188118,20.0,214.35,214.26,9.20353583]
[1731777188451,20.0,214.35,214.27,9.20353583]
[1731777189244,0.09367462,214.34,214.28,16.3336]
[1731777190455,23.87055862,214.34,214.24,23.3376]
[1731777190621,23.87055862,214.34,214.24,32.54113583]
[1731777190942,23.87055862,214.34,214.25,9.20353583]
[1731777191418,23.87055862,214.34,214.26,16.3352]
[1731777192019,20.0,214.36,214.26,25.53873583]
[1731777192215,160.9,214.38,214.26,25.53873583]
[1731777192216,160.9,214.38,214.29,9.20353583]
[1731777192419,160.9,214.38,214.28,9.20353583]
[1731777192945,0.09367462,214.37,214.28,9.20353583]
[1731777193645,0.09367462,214.37,214.29,20.86993583]
[1731777193941,0.09367462,214.37,214.29,11.6664]
[1731777195446,23.87055862,214.38,214.29,16.3329]
[1731777196459,23.87055862,214.36,214.29,16.3329]
[1731777197331,23.87055862,214.36,214.29,11.6664]
[1731777201234,184.77055862,214.36,214.29,11.6664]
[1731777201933,23.776884,214.36,214.29,11.6664]
[1731777202124,165.5636,214.43,214.31,9.20353583]
[1731777202326,4.6636,214.43,214.31,9.20353583]
[1731777203057,0.09367462,214.42,214.32,16.3307]
[1731777203552,23.87055862,214.42,214.32,16.3307]
[1731777203759,20.0,214.41,214.32,16.3307]
[1731777206154,0.09367462,214.38,214.32,11.6648]
[1731777206353,23.87055862,214.38,214.32,16.3307]
[1731777207354,23.87055862,214.38,214.32,11.6648]
[1731777208450,180.9,214.39,214.31,9.20353583]
[1731777208656,180.9,214.39,214.25,24.12153862]
[1731777208845,4.6637,214.42,214.3,9.20353583]
[1731777209034,0.09367462,214.41,214.3,9.20353583]
[1731777209756,0.09367462,214.41,214.31,16.3314]
[1731777209962,23.776884,214.41,214.31,25.53493583]
[1731777210363,23.776884,214.41,214.31,16.3314]
[1731777210537,23.776884,214.41,214.31,25.53493583]
[1731777211533,0.09367462,214.4,214.31,16.3314]
[1731777211740,23.87055862,214.4,214.31,16.3314]
[1731777213536,23.87055862,214.4,214.3,23.3316]
[1731777213735,23.87055862,214.38,214.26,16.3352]
[1731777214336,23.87055862,214.38,214.27,9.20353583]
[1731777214952,160.9,214.39,214.29,9.20353583]
[1731777215165,160.9,214.39,214.28,25.53713583]
[1731777215359,160.9,214.39,214.28,16.3336]
[1731777216763,23.87055862,214.38,214.28,16.3336]
[1731777216946,23.87055862,214.36,214.28,16.3336]
[1731777217363,0.09367462,214.36,214.28,16.3336]
[1731777217568,23.776884,214.35,214.28,16.3336]
[1731777217863,0.09367462,214.34,214.28,11.6669]
[1731777218061,0.09367462,214.32,214.26,4.61576594]
[1731777218946,0.09367462,214.32,214.24,11.6688]
[1731777219246,0.09367462,214.3,214.24,11.6688]
[1731777219439,23.776884,214.29,214.24,11.6688]
[1731777221574,23.776884,214.29,214.21,9.20353583]
[1731777221755,23.776884,214.29,214.2,9.20353583]
[1731777222058,23.776884,214.29,214.21,9.20353583]
[1731777222265,160.9,214.3,214.21,9.20353583]
[1731777223349,160.9,214.3,214.22,16.3382]
[1731777224959,0.09367462,214.31,214.23,9.20353583]
[1731777225270,23.776884,214.34,214.25,9.20353583]
[1731777225474,0.09367462,214.33,214.25,9.20353583]
[1731777226178,160.9,214.4,214.26,25.53873583]
[1731777226356,4.6648,214.38,214.27,9.20353583]
[1731777226556,4.6648,214.38,214.28,9.20353583]
[1731777226760,0.09367462,214.37,214.28,9.20353583]
[1731777227575,160.9,214.39,214.28,9.20353583]
[1731777227756,160.9,214.39,214.26,39.6713]
[1731777227757,160.9,214.39,214.27,9.20353583]
[1731777227955,0.09367462,214.38,214.27,9.20353583]
[1731777228473,20.09367462,214.38,214.28,16.3336]
[1731777228874,23.776884,214.37,214.28,25.53713583]
[1731777229056,23.776884,214.37,214.28,16.3336]
[1731777232861,23.776884,214.37,214.28,9.20353583]
[1731777233573,23.776884,214.37,214.26,23.3361]
[1731777233574,160.9,214.38,214.3,9.20353583]
[1731777233774,160.9,214.38,214.26,23.3361]
[1731777233775,160.9,214.38,214.31,9.20353583]
[1731777234081,160.9,214.44,214.33,9.20353583]
[1731777234491,160.9,214.44,214.32,9.20353583]
[1731777234662,160.9,214.44,214.31,9.20353583]
[1731777234862,0.09367462,214.42,214.32,16.3307]
[1731777235464,23.87055862,214.42,214.32,16.3307]
[1731777235878,23.87055862,214.41,214.32,16.3307]
[1731777236287,160.9,214.44,214.32,16.3307]
[1731777236288,20.0,214.43,214.34,9.20353583]
[1731777236519,165.5634,214.44,214.35,9.20353583]
[1731777237476,23.776884,214.43,214.36,16.3276]
[1731777238879,23.776884,214.43,214.36,11.6626]
[1731777240069,160.9,214.44,214.36,11.6626]
[1731777242377,23.87055862,214.44,214.36,11.6626]
[1731777243395,28.53385862,214.44,214.36,11.6626]
[1731777245578,189.43385862,214.44,214.36,11.6626]
[1731777246714,184.676884,214.44,214.36,11.6626]
[1731777250020,189.340184,214.44,214.36,11.6626]
[1731777251980,180.99367462,214.43,214.36,11.6626]
[1731777252289,0.09367462,214.41,214.36,11.6626]
[1731777252499,20.09367462,214.41,214.36,11.6626]
[1731777253088,24.75767462,214.41,214.31,16.3314]
[1731777253802,20.0,214.41,214.31,16.3314]
[1731777254002,24.6639,214.42,214.31,25.53493583]
[1731777254988,23.87055862,214.41,214.29,9.20353583]
[1731777255385,4.6639,214.42,214.31,9.20353583]
[1731777255989,4.6639,214.42,214.32,16.3307]
[1731777257421,4.6639,214.42,214.32,11.6648]
[1731777258606,165.5634,214.44,214.34,9.20353583]
[1731777259322,165.5634,214.44,214.33,9.20353583]
[1731777260505,165.5634,214.44,214.34,16.3291]
[1731777261212,23.87055862,214.43,214.28,0.12549]
[1731777261389,165.5637,214.42,214.29,48.86923583]
[1731777261596,165.5637,214.42,214.3,9.20353583]
[1731777262484,165.5637,214.42,214.29,48.86923583]
[1731777262712,165.5637,214.42,214.31,16.3314]
[1731777265213,165.5637,214.42,214.31,20.86883583]
[1731777266218,165.5637,214.42,214.31,25.53493583]
[1731777266816,165.5637,214.42,214.31,16.3314]
[1731777268497,23.776884,214.41,214.31,16.3314]
[1731777269992,160.9,214.42,214.33,9.20353583]
[1731777270195,0.5385869,214.45,214.34,9.20353583]
[1731777270410,20.5385869,214.45,214.34,9.20353583]
[1731777271332,20.5385869,214.45,214.35,9.20353583]
[1731777271530,23.776884,214.44,214.36,16.3276]
[1731777273415,23.776884,214.44,214.31,23.3306]
[1731777273612,23.776884,214.44,214.32,9.32902583]
[1731777274345,28.440284,214.44,214.31,39.662]
[1731777275037,28.440284,214.44,214.31,48.86553583]
[1731777275233,23.776884,214.42,214.31,48.86553583]
[1731777275533,23.776884,214.42,214.32,9.20353583]
[1731777275713,23.776884,214.42,214.34,9.20353583]
[1731777277432,23.776884,214.42,214.35,16.3283]
[1731777278837,0.5385869,214.45,214.35,16.3283]
[1731777279026,24.3154709,214.45,214.35,48.85813583]
[1731777280219,0.5385869,214.45,214.36,9.32902583]
[1731777281816,0.5385869,214.45,214.37,48.85443583]
[1731777284526,0.5385869,214.45,214.39,16.3252]
[1731777285618,0.5385869,214.45,214.39,11.6609]
[1731777290946,0.5385869,214.45,214.39,20.86443583]
[1731777291855,4.6597,214.61,214.44,9.45451583]
[1731777292146,189.91863161,214.64,214.44,9.45451583]
[1731777292147,165.5593,214.63,214.51,9.20353583]
[1731777292329,160.9,214.62,214.51,9.20353583]
[1731777293128,43.776884,214.61,214.52,16.3154]
[1731777294939,23.776884,214.59,214.52,11.6539]
[1731777296050,23.776884,214.59,214.49,9.20353583]
[1731777296851,23.776884,214.59,214.5,9.20353583]
[1731777297421,23.776884,214.59,214.51,25.51963583]
[1731777300933,23.776884,214.59,214.53,9.20353583]
[1731777301154,160.9,214.6,214.54,9.20353583]
[1731777301350,160.9,214.6,214.55,9.20353583]
[1731777301529,160.9,214.6,214.54,9.20353583]
[1731777301959,20.0,214.64,214.48,0.34465462]
[1731777302142,0.09367462,214.63,214.48,0.25098]
[1731777302355,0.09367462,214.63,214.49,9.20353583]
[1731777302540,0.09367462,214.63,214.5,9.20353583]
[1731777302858,4.6593,214.62,214.51,16.3161]
[1731777303042,23.776884,214.61,214.51,16.3161]
[1731777304645,23.776884,214.59,214.51,16.3161]
[1731777306459,23.776884,214.57,214.46,25.52343583]
[1731777306839,23.776884,214.57,214.46,16.3199]
[1731777307334,22.427084,214.57,214.46,16.3199]
[1731777307536,22.427084,214.57,214.46,9.20353583]
[1731777309077,22.427084,214.57,214.45,23.3154]
[1731777309078,22.427084,214.57,214.47,25.52273583]
[1731777309774,22.427084,214.57,214.48,9.20353583]
[1731777311346,23.776884,214.58,214.49,11.6555]
[1731777312644,28.437084,214.58,214.49,11.6555]
[1731777315261,20.09367462,214.55,214.45,16.3204]
[1731777315475,23.776884,214.56,214.45,16.3204]
[1731777315476,23.776884,214.52,214.45,16.3204]
[1731777315680,181.428084,214.52,214.45,16.3204]
[1731777316260,160.9,214.51,214.4,16.324]
[1731777316979,4.6622,214.49,214.4,11.6599]
[1731777317956,23.776884,214.48,214.4,11.6599]
[1731777318970,4.6626,214.47,214.4,11.6599]
[1731777319168,23.776884,214.46,214.4,11.6599]
[1731777319796,184.676884,214.46,214.38,4.6646]
[1731777320156,184.676884,214.46,214.36,16.3272]
[1731777320157,0.09367462,214.45,214.36,16.3272]
[1731777320778,23.776884,214.42,214.28,25.53713583]
[1731777320975,23.776884,214.4,214.29,9.20353583]
[1731777321175,23.776884,214.4,214.3,16.3321]
[1731777321887,160.9,214.41,214.33,9.20353583]
[1731777322097,4.6624,214.49,214.37,9.20353583]
[1731777322269,160.9,214.48,214.38,9.20353583]
[1731777322466,160.9,214.48,214.36,9.20353583]
[1731777323091,160.9,214.48,214.38,9.20353583]
[1731777323298,4.6618,214.51,214.39,9.20353583]
[1731777323609,160.9,214.53,214.4,9.20353583]
[1731777323790,160.9,214.52,214.38,9.20353583]
[1731777323987,0.09367462,214.51,214.37,39.6509]
[1731777324697,160.9,214.5,214.37,16.3268]
[1731777324907,23.776884,214.46,214.37,11.662]
[1731777325198,23.776884,214.46,214.3,37.69284982]
[1731777325199,23.776884,214.44,214.31,11.6653]
[1731777325407,23.776884,214.42,214.31,16.3314]
[1731777325696,23.776884,214.4,214.31,16.3314]
[1731777326114,23.776884,214.38,214.31,11.6653]
[1731777326408,23.776884,214.36,214.31,11.6653]
[1731777326697,160.9,214.37,214.31,16.3314]
[1731777326896,23.776884,214.36,214.31,16.3314]
[1731777327079,23.776884,214.36,214.25,37.69804982]
[1731777327405,4.6644,214.39,214.26,0.12549]
[1731777327406,23.776884,214.38,214.26,0.12549]
[1731777328104,23.776884,214.36,214.25,14.36114982]
[1731777328291,23.776884,214.36,214.27,14.36114982]
[1731777328600,23.87055862,214.38,214.27,14.36114982]
[1731777328802,23.776884,214.36,214.25,14.36114982]
[1731777329097,28.441884,214.36,214.25,16.336]
[1731777329782,23.776884,214.34,214.25,16.336]
[1731777329989,23.776884,214.34,214.25,30.69714982]
[1731777330803,23.776884,214.34,214.25,16.336]
[1731777331178,23.776884,214.34,214.25,30.69714982]
[1731777331389,23.776884,214.34,214.25,16.336]
[1731777331694,28.442484,214.34,214.25,16.336]
[1731777331900,23.776884,214.34,214.25,16.336]
[1731777332103,23.776884,214.34,214.26,14.36114982]
[1731777332400,0.1,214.45,214.26,14.36114982]
[1731777332401,4.6639,214.42,214.3,14.36114982]
[1731777332601,160.9,214.41,214.3,14.36114982]
[1731777332972,160.9,214.41,214.31,14.36114982]
[1731777333181,160.9,214.43,214.34,16.3291]
[1731777333700,160.9,214.49,214.37,14.48663982]
[1731777334078,165.5622,214.49,214.37,14.48663982]
[1731777335076,20.0,214.48,214.38,16.3261]
[1731777335384,0.09367462,214.47,214.38,16.3261]
[1731777335784,23.87055862,214.47,214.38,16.3261]
[1731777336179,23.776884,214.45,214.38,11.6615]
[1731777337209,189.339984,214.45,214.38,11.6615]
[1731777337702,23.776884,214.43,214.35,4.6652]
[1731777338003,23.776884,214.41,214.35,4.6652]
[1731777338408,23.776884,214.42,214.32,14.36114982]
[1731777339191,23.776884,214.42,214.31,14.36114982]
[1731777339503,23.776884,214.43,214.33,16.3299]
[1731777342087,27.940884,214.41,214.33,11.6642]
[1731777342305,27.940884,214.41,214.3,14.36114982]
[1731777342503,188.840884,214.41,214.3,14.36114982]
[1731777342805,20.0,214.4,214.28,30.69474982]
[1731777343006,184.676884,214.39,214.28,16.3336]
[1731777343501,23.776884,214.37,214.28,16.3336]
[1731777344188,20.0,214.4,214.28,16.3336]
[1731777344189,23.776884,214.35,214.28,16.3336]
[1731777345002,4.6647,214.38,214.28,16.3336]
[1731777345003,23.776884,214.37,214.28,16.3336]
[1731777346911,28.441684,214.37,214.28,16.3336]
[1731777347088,23.776884,214.35,214.28,16.3336]
[1731777348290,160.9,214.4,214.29,14.36114982]
[1731777348497,4.6637,214.42,214.3,14.36114982]
[1731777348689,0.09367462,214.41,214.29,14.36114982]
[1731777348894,0.09367462,214.41,214.3,14.36114982]
[1731777349530,4.75737462,214.42,214.31,16.3314]
[1731777350013,23.776884,214.39,214.31,16.3314]
[1731777351409,28.441384,214.39,214.31,11.6653]
[1731777352309,23.776884,214.37,214.31,11.6653]
[1731777353711,23.776884,214.37,214.29,14.36114982]
[1731777353915,23.776884,214.37,214.31,14.36114982]
[1731777354090,4.6637,214.43,214.32,14.36114982]
[1731777354295,24.6637,214.43,214.32,14.36114982]
[1731777354497,4.6637,214.43,214.32,14.36114982]
[1731777355204,160.9,214.42,214.31,14.36114982]
[1731777355401,28.440784,214.41,214.3,14.36114982]
[1731777355911,24.6631,214.45,214.33,14.36114982]
[1731777356101,20.0,214.43,214.32,14.36114982]
[1731777357195,23.776884,214.42,214.32,14.36114982]
[1731777357398,160.9,214.44,214.35,16.3283]
[1731777358615,165.5633,214.44,214.35,16.3283]
[1731777358813,23.776884,214.43,214.35,16.3283]
[1731777359702,23.776884,214.43,214.35,11.6631]
[1731777360509,28.440384,214.43,214.35,11.6631]
[1731777361109,189.340384,214.43,214.35,11.6631]
[1731777361927,189.340384,214.43,214.32,37.69044982]
[1731777362294,189.340384,214.43,214.32,23.3293]
[1731777363415,189.340384,214.43,214.32,39.66]
[1731777364098,189.340384,214.43,214.32,54.02114982]